bitfinex/quotes_SOLUSD_20240613
["timestamp","ask_amount","ask_price","bid_price","bid_amount"]
[1718288117459,2.4742,149.54,149.46,45.0]
[1718288117460,2.4746,149.52,149.46,47.4755]
[1718288117765,2.4744,149.53,149.46,47.4755]
[1718288118136,2.4746,149.52,149.46,47.4755]
[1718288118351,2.4744,149.53,149.47,2.4754]
[1718288118655,6.96267124,149.58,149.46,52.4264]
[1718288118853,2.4738,149.57,149.51,2.4746]
[1718288119167,2.4744,149.53,149.44,9.9031]
[1718288119383,2.4742,149.54,149.47,2.4753]
[1718288119599,2.4742,149.54,149.48,2.4752]
[1718288119892,20.0,149.55,149.49,2.4749]
[1718288120095,2.4739,149.56,149.47,4.9506]
[1718288120260,2.474,149.56,149.48,45.0]
[1718288120463,2.474,149.56,149.5,2.4748]
[1718288120761,2.474,149.56,149.46,2.4755]
[1718288120762,2.4744,149.53,149.46,2.4755]
[1718288120974,12.3696,149.56,149.45,2.4756]
[1718288120975,37.3188,149.55,149.45,2.4756]
[1718288121284,20.0,149.55,149.43,16.363]
[1718288121489,2.4743,149.54,149.47,2.4753]
[1718288121669,20.0,149.55,149.44,9.9029]
[1718288121996,2.4745,149.52,149.43,21.3149]
[1718288122284,20.0,149.54,149.47,2.4754]
[1718288122454,20.0,149.54,149.43,16.363]
[1718288122455,20.0,149.54,149.45,4.9512]
[1718288122655,20.0,149.54,149.46,49.9509]
[1718288122855,2.4742,149.54,149.48,2.4751]
[1718288123085,2.4743,149.54,149.48,2.4752]
[1718288123258,20.0,149.55,149.46,45.0]
[1718288123460,2.4739,149.56,149.49,2.4749]
[1718288123762,20.0,149.57,149.49,4.95]
[1718288123961,31.4895,149.62,149.5,78.4256]
[1718288123962,20.0,149.59,149.5,78.4256]
[1718288124265,20.0,149.61,149.5,78.4256]
[1718288124489,2.4735,149.59,149.53,2.4743]
[1718288124697,33.9629,149.62,149.53,2.4743]
[1718288124863,21.5978,149.62,149.52,45.0]
[1718288125191,2.4735,149.58,149.52,2.4745]
[1718288125565,21.5978,149.62,149.52,7.4236]
[1718288125889,2.4735,149.59,149.53,2.4743]
[1718288126085,2.4736,149.58,149.52,2.4744]
[1718288126262,32.3655,149.61,149.52,2.4744]
[1718288126468,2.4736,149.58,149.52,2.4744]
[1718288126886,2.4733,149.6,149.54,2.4741]
[1718288127103,22.4731,149.61,149.55,2.474]
[1718288127265,22.4731,149.61,149.51,9.8989]
[1718288127266,20.0,149.61,149.51,9.8989]
[1718288127464,2.4733,149.6,149.52,45.0]
[1718288127775,20.0,149.61,149.54,2.474]
[1718288127963,2.4734,149.59,149.53,2.4743]
[1718288128163,22.4731,149.61,149.53,12.3719]
[1718288128363,20.0,149.63,149.54,45.0]
[1718288128592,2.4731,149.61,149.55,2.474]
[1718288128768,2.4732,149.6,149.54,2.4741]
[1718288128972,2.4734,149.59,149.53,2.4743]
[1718288129283,100.0,149.6,149.5,16.1014]
[1718288129484,2.4742,149.55,149.49,8.4848]
[1718288129785,0.34,149.59,149.49,6.0098]
[1718288129987,32.5364,149.6,149.49,15.9095]
[1718288130290,2.4736,149.58,149.52,2.4745]
[1718288130466,2.4737,149.57,149.51,2.4746]
[1718288130992,2.4736,149.58,149.52,2.4745]
[1718288131160,20.0,149.6,149.51,4.9494]
[1718288131483,20.0,149.6,149.52,2.4745]
[1718288131484,2.4736,149.58,149.52,2.4745]
[1718288131890,20.0,149.59,149.51,4.9494]
[1718288132079,20.0,149.59,149.52,45.0]
[1718288132286,2.4726,149.64,149.58,2.4734]
[1718288132478,2.4726,149.64,149.58,2.4735]
[1718288132689,262.3718,149.69,149.6,4.9464]
[1718288132896,2.472,149.68,149.6,4.9464]
[1718288133262,2.4718,149.69,149.63,2.4726]
[1718288133467,2.472,149.68,149.61,45.0]
[1718288133685,2.4722,149.67,149.61,45.0]
[1718288133892,7.4154,149.69,149.59,2.4733]
[1718288134068,100.0,149.69,149.58,6.2507]
[1718288134403,2.4728,149.63,149.57,2.4737]
[1718288134691,0.8125968,149.65,149.62,2.4729]
[1718288134869,0.8125968,149.65,149.59,12.3668]
[1718288135068,0.8125968,149.65,149.58,7.4207]
[1718288135069,0.8125968,149.65,149.64,2.4726]
[1718288135503,0.8125968,149.65,149.61,22.1789]
[1718288135870,2.4728,149.63,149.57,22.1212]
[1718288136207,0.8125968,149.65,149.57,22.1212]
[1718288136373,0.8125968,149.65,149.62,2.4728]
[1718288137081,0.8125968,149.65,149.6,7.4197]
[1718288137262,0.8125968,149.65,149.64,2.4726]
[1718288139290,0.8125968,149.65,149.64,24.726]
[1718288139465,0.8125968,149.65,149.64,69.896]
[1718288139663,0.8125968,149.65,149.64,70.066]
[1718288140267,0.8125968,149.65,149.64,47.4726]
[1718288140667,0.8125968,149.65,149.64,59.8356]
[1718288140866,0.8125968,149.65,149.64,69.896]
[1718288141089,0.8125968,149.65,149.64,76.5493]
[1718288141271,0.8125968,149.65,149.64,92.7585]
[1718288141473,259.9,149.74,149.69,9.887]
[1718288141681,5.7525968,149.8,149.7,49.9431]
[1718288141895,2.4704,149.77,149.71,2.4713]
[1718288142098,2.4706,149.76,149.7,47.4715]
[1718288142300,12.3507,149.79,149.66,7.4164]
[1718288142301,2.4709,149.74,149.68,2.4718]
[1718288142476,2.4707,149.76,149.68,4.9437]
[1718288142680,0.17,149.77,149.67,45.0]
[1718288142880,22.4705,149.77,149.7,2.4714]
[1718288143105,22.4705,149.77,149.69,45.0]
[1718288143290,2.4705,149.77,149.71,2.4713]
[1718288143710,22.4703,149.78,149.72,2.4712]
[1718288143880,22.4703,149.78,149.69,49.9434]
[1718288143881,22.4701,149.79,149.73,2.471]
[1718288144076,20.0,149.78,149.73,2.471]
[1718288144322,2.4701,149.79,149.73,2.471]
[1718288144616,23.2825968,149.8,149.74,2.4709]
[1718288145025,2.4701,149.79,149.73,2.471]
[1718288145807,8.2224968,149.8,149.72,45.0]
[1718288145981,4.9403,149.79,149.68,22.4171]
[1718288146281,5.1107,149.78,149.68,4.9437]
[1718288146481,22.4705,149.77,149.71,2.4714]
[1718288146796,2.4706,149.76,149.7,2.4715]
[1718288147519,2.4706,149.76,149.68,4.9437]
[1718288147520,2.4708,149.75,149.69,2.4716]
[1718288147887,2.4706,149.76,149.7,2.4715]
[1718288148191,0.17,149.78,149.69,2.4717]
[1718288148192,2.4708,149.75,149.69,2.4717]
[1718288148396,2.4716,149.71,149.65,2.4723]
[1718288148696,2.4716,149.71,149.61,7.4188]
[1718288148697,2.4717,149.7,149.64,24.825]
[1718288149300,2.4717,149.7,149.64,2.4725]
[1718288149494,2.4717,149.7,149.61,17.3111]
[1718288149495,4.9429,149.71,149.63,2.4727]
[1718288149819,2.4719,149.69,149.63,2.4727]
[1718288150121,2.4719,149.68,149.62,2.4727]
[1718288150416,20.0,149.7,149.6,22.2851]
[1718288150714,20.0,149.7,149.62,2.4728]
[1718288150715,2.472,149.68,149.62,2.4728]
[1718288150881,2.4718,149.69,149.63,2.4727]
[1718288151084,2.472,149.68,149.62,2.4728]
[1718288151303,2.4721,149.68,149.6,22.2851]
[1718288151483,2.4718,149.69,149.63,2.4727]
[1718288151811,20.0,149.7,149.67,2.472]
[1718288152120,2.4711,149.73,149.67,2.472]
[1718288152421,2.4711,149.73,149.65,17.3065]
[1718288152422,6.0328,149.77,149.66,12.3611]
[1718288152627,2.4706,149.76,149.7,2.4715]
[1718288152788,2.471,149.74,149.68,8.499]
[1718288153097,2.471,149.74,149.68,2.4718]
[1718288153282,23.7119,149.78,149.7,2.4716]
[1718288153283,28.6527,149.78,149.7,2.4716]
[1718288153483,2.4707,149.75,149.69,2.4716]
[1718288153707,7.4114,149.77,149.68,45.0]
[1718288153882,2.471,149.74,149.68,2.4719]
[1718288154084,2.4708,149.75,149.69,2.4717]
[1718288154483,33.5931,149.78,149.68,45.0]
[1718288154484,23.7119,149.78,149.68,45.0]
[1718288154801,0.17,149.75,149.68,45.0]
[1718288154984,2.4713,149.72,149.68,45.0]
[1718288155383,2.4711,149.73,149.68,45.0]
[1718288155823,2.4714,149.71,149.65,2.4723]
[1718288156024,25.1126,149.72,149.65,45.0]
[1718288156210,25.1126,149.72,149.64,8.4997]
[1718288156211,2.4718,149.69,149.64,6.0272]
[1718288156516,2.6415,149.71,149.65,2.4724]
[1718288156725,2.4716,149.7,149.64,6.0272]
[1718288157014,0.17,149.71,149.64,6.0272]
[1718288157015,2.6415,149.71,149.65,2.4723]
[1718288157207,20.0,149.72,149.64,15.917]
[1718288157400,22.471,149.74,149.68,2.4719]
[1718288157600,20.0,149.73,149.68,2.4719]
[1718288157803,22.4708,149.75,149.67,12.3604]
[1718288158003,22.4708,149.75,149.69,2.4716]
[1718288158196,2.4708,149.75,149.69,2.4716]
[1718288158596,4.942,149.74,149.66,2.4721]
[1718288158810,2.4714,149.72,149.66,2.4721]
[1718288159112,32.3549,149.74,149.66,2.4721]
[1718288159113,20.0,149.73,149.66,2.4721]
[1718288159316,12.3582,149.7,149.6,22.779]
[1718288159496,20.0,149.69,149.64,2.4724]
[1718288159691,2.4719,149.68,149.6,27.7252]
[1718288160015,2.4719,149.68,149.6,22.779]
[1718288160314,22.4717,149.7,149.63,2.4727]
[1718288160544,20.0,149.69,149.6,32.6716]
[1718288160725,20.0,149.69,149.6,22.779]
[1718288160726,2.4724,149.66,149.6,22.779]
[1718288161011,25.2843,149.67,149.58,2.4735]
[1718288161189,2.4725,149.65,149.58,2.4735]
[1718288161390,2.4725,149.65,149.59,2.4733]
[1718288161614,2.4726,149.64,149.56,21.3458]
[1718288161917,2.4726,149.64,149.58,2.4734]
[1718288162112,2.4728,149.63,149.57,2.4737]
[1718288162306,2.4726,149.64,149.58,2.4735]
[1718288162508,20.0,149.65,149.56,21.3458]
[1718288162711,37.4724,149.69,149.57,4.9472]
[1718288162917,2.4723,149.66,149.57,4.9472]
[1718288163215,2.4723,149.66,149.6,2.4732]
[1718288163515,2.4725,149.65,149.59,2.4733]
[1718288163812,20.17,149.67,149.56,21.3458]
[1718288163813,37.4749,149.67,149.56,21.3458]
[1718288164013,2.4727,149.63,149.57,2.4736]
[1718288164229,2.4729,149.62,149.56,23.8196]
[1718288164393,2.4728,149.63,149.57,2.4737]
[1718288164721,20.0,149.64,149.56,21.3458]
[1718288165033,2.4728,149.63,149.57,2.4736]
[1718288165316,2.4726,149.64,149.58,2.4735]
[1718288165689,2.4727,149.63,149.57,47.4736]
[1718288165893,2.4727,149.63,149.57,45.0]
[1718288166321,2.4729,149.62,149.57,45.0]
[1718288166623,22.4726,149.64,149.58,2.4735]
[1718288166912,20.0,149.64,149.57,45.0]
[1718288167117,2.4728,149.63,149.57,47.4737]
[1718288167306,2.4729,149.62,149.57,45.0]
[1718288167492,2.4734,149.59,149.53,2.4743]
[1718288167696,2.4733,149.6,149.53,2.4743]
[1718288167892,2.4736,149.58,149.52,25.1484]
[1718288168118,2.4738,149.57,149.52,22.6739]
[1718288168320,4.9472,149.58,149.49,16.32]
[1718288168498,2.4738,149.57,149.49,16.32]
[1718288168698,2.4738,149.57,149.51,2.4747]
[1718288169402,20.0,149.59,149.5,0.17]
[1718288169725,2.4733,149.6,149.54,2.4741]
[1718288170306,2.8131,149.61,149.55,2.474]
[1718288170622,2.8131,149.61,149.52,12.3725]
[1718288170623,22.6429,149.62,149.53,12.3716]
[1718288170796,22.6429,149.62,149.58,2.4735]
[1718288170797,20.0,149.62,149.58,2.4735]
[1718288170996,0.17,149.64,149.56,2.4738]
[1718288171200,2.473,149.62,149.56,2.4738]
[1718288171416,0.34,149.64,149.55,45.0]
[1718288171622,6.1441,149.66,149.52,12.3727]
[1718288171623,7.4185,149.63,149.52,12.3727]
[1718288171798,12.3632,149.64,149.53,50.1187]
[1718288171992,2.473,149.61,149.55,2.4739]
[1718288172820,20.0,149.62,149.53,45.0]
[1718288173001,20.0,149.65,149.54,10.4067]
[1718288173204,12.3623,149.65,149.54,15.0151]
[1718288173533,2.4728,149.63,149.57,2.4737]
[1718288173897,100.0,149.65,149.55,45.0]
[1718288174098,5.116,149.62,149.55,47.474]
[1718288174427,2.6426,149.64,149.58,2.4734]
[1718288174623,2.4726,149.64,149.58,2.4734]
[1718288175017,22.4724,149.65,149.59,2.4732]
[1718288175331,6.1099,149.69,149.6,4.9462]
[1718288175624,4.9433,149.7,149.64,2.4725]
[1718288175625,2.4716,149.7,149.64,2.4725]
[1718288175832,2.4718,149.69,149.63,45.0]
[1718288176123,4.9436,149.69,149.61,45.0]
[1718288176300,2.4718,149.69,149.63,2.4726]
[1718288176498,2.4716,149.7,149.64,2.4725]
[1718288176807,266.0099,149.73,149.6,45.17]
[1718288177122,2.4712,149.72,149.66,2.4721]
[1718288177328,20.6321,149.75,149.65,13.9381]
[1718288177329,15.6905,149.75,149.65,13.9381]
[1718288177630,486.3,149.76,149.66,45.0]
[1718288177936,386.3,149.76,149.67,4.9441]
[1718288178105,386.3,149.76,149.69,2.4716]
[1718288178304,2.4709,149.74,149.68,47.4718]
[1718288178495,2.4712,149.73,149.66,45.0]
[1718288178696,2.4712,149.72,149.66,45.0]
[1718288178924,2.4712,149.72,149.66,47.4722]
[1718288179296,20.0,149.74,149.66,47.4722]
[1718288179516,2.4715,149.71,149.65,8.9932]
[1718288179724,2.4715,149.71,149.65,6.5209]
[1718288179897,2.4715,149.71,149.65,8.9933]
[1718288180102,2.6413,149.72,149.66,2.4722]
[1718288180313,2.8113,149.72,149.66,2.4722]
[1718288180536,0.34,149.72,149.64,15.7602]
[1718288180740,2.4721,149.67,149.61,9.1229]
[1718288181348,20.0,149.69,149.61,6.65]
[1718288181633,20.0,149.7,149.66,2.4721]
[1718288181801,2.6413,149.72,149.66,2.4721]
[1718288181802,0.17,149.72,149.66,2.4721]
[1718288182007,0.34,149.72,149.66,2.4721]
[1718288182215,2.4711,149.73,149.65,4.9448]
[1718288182416,393.25388351,149.76,149.66,4.9443]
[1718288182417,386.3,149.76,149.66,4.9443]
[1718288182625,386.3,149.76,149.68,2.4718]
[1718288182626,2.4709,149.74,149.68,2.4718]
[1718288182924,6.4646,149.77,149.66,45.0]
[1718288183108,2.4706,149.76,149.7,2.4715]
[1718288183317,4.9412,149.76,149.68,16.1889]
[1718288183510,2.4708,149.75,149.69,47.4716]
[1718288183820,2.4706,149.76,149.7,2.4715]
[1718288184003,2.4705,149.77,149.71,2.4714]
[1718288184201,275.0477,149.79,149.69,49.9434]
[1718288184401,275.0477,149.79,149.72,2.4711]
[1718288184402,2.4704,149.78,149.72,2.4711]
[1718288185212,275.0477,149.79,149.69,45.0]
[1718288185426,4.941,149.77,149.69,45.0]
[1718288185731,2.4709,149.75,149.69,45.0]
[1718288185929,0.17,149.76,149.68,22.6293]
[1718288186126,2.4711,149.73,149.68,16.1889]
[1718288186429,2.4713,149.72,149.64,22.9596]
[1718288186636,22.4711,149.73,149.67,2.472]
[1718288186804,0.17,149.74,149.69,2.4717]
[1718288187006,22.4708,149.75,149.69,2.4717]
[1718288187203,2.4708,149.75,149.69,2.4717]
[1718288187721,2.4705,149.77,149.71,2.4713]
[1718288187922,2.4706,149.76,149.7,47.4715]
[1718288188229,2.4707,149.75,149.69,47.4716]
[1718288188425,2.4707,149.75,149.69,2.4716]
[1718288188808,100.0,149.77,149.68,45.0]
[1718288189005,2.4712,149.73,149.67,2.472]
[1718288189206,2.4713,149.72,149.66,2.4721]
[1718288189429,22.471,149.74,149.67,2.472]
[1718288189627,2.4711,149.73,149.67,2.472]
[1718288190008,20.0,149.74,149.67,4.9441]
[1718288190220,2.4707,149.75,149.68,45.0]
[1718288190503,4.9422,149.73,149.64,22.9596]
[1718288190711,4.9422,149.73,149.63,2.4727]
[1718288190712,2.4718,149.69,149.63,2.4727]
[1718288190913,2.472,149.68,149.6,21.8567]
[1718288191122,0.17,149.69,149.6,21.8567]
[1718288191432,2.4723,149.66,149.6,24.3298]
[1718288191827,2.4723,149.66,149.6,17.7858]
[1718288192011,4.9448,149.66,149.56,22.8199]
[1718288192321,2.4727,149.64,149.57,2.4736]
[1718288192521,20.34,149.65,149.58,2.4735]
[1718288192709,20.51,149.65,149.6,2.4731]
[1718288193107,20.0,149.64,149.59,2.4733]
[1718288193328,2.9824,149.65,149.59,2.4733]
[1718288193715,0.34,149.65,149.6,2.4732]
[1718288194045,2.6423,149.66,149.58,4.947]
[1718288194046,0.17,149.66,149.58,4.947]
[1718288194241,2.4725,149.65,149.59,2.4733]
[1718288194420,100.68,149.66,149.56,22.8199]
[1718288194626,2.4729,149.62,149.56,22.8199]
[1718288194838,2.4729,149.62,149.56,25.2937]
[1718288195217,2.4728,149.63,149.57,2.4737]
[1718288195516,2.473,149.62,149.56,22.8199]
[1718288195723,2.473,149.62,149.56,16.5551]
[1718288196242,2.473,149.62,149.56,2.4738]
[1718288197232,0.17,149.62,149.57,2.4736]
[1718288197434,0.34,149.62,149.56,2.4738]
[1718288197619,0.34,149.62,149.57,2.4737]
[1718288197938,20.0,149.63,149.57,2.4737]
[1718288198116,22.4728,149.63,149.56,2.4738]
[1718288198317,22.4728,149.63,149.57,2.4737]
[1718288198531,20.0,149.63,149.57,4.9473]
[1718288198744,2.4724,149.65,149.59,2.4733]
[1718288198913,120.0,149.67,149.6,2.4732]
[1718288198914,2.4723,149.66,149.6,2.4732]
[1718288199339,2.4723,149.66,149.59,2.4733]
[1718288199521,2.4725,149.65,149.59,2.4733]
[1718288202420,2.4725,149.65,149.59,2.4734]
[1718288203548,2.4721,149.67,149.61,2.473]
[1718288204226,2.472,149.68,149.62,2.4729]
[1718288204421,2.4721,149.67,149.61,2.473]
[1718288204755,393.4646,149.71,149.6,15.8064]
[1718288204756,0.17,149.68,149.6,28.172]
[1718288204933,0.17,149.68,149.61,45.0]
[1718288205237,2.472,149.68,149.62,2.4728]
[1718288205449,2.4723,149.66,149.61,45.0]
[1718288205846,20.0,149.67,149.6,15.8064]
[1718288206019,2.4727,149.64,149.6,15.8064]
[1718288206327,20.0,149.65,149.59,6.2793]
[1718288206517,2.4726,149.64,149.59,6.2793]
[1718288206720,22.4725,149.65,149.59,6.2793]
[1718288206953,2.473,149.62,149.57,16.2881]
[1718288207121,17.3086,149.64,149.57,16.2881]
[1718288207122,0.17,149.63,149.57,16.2881]
[1718288207328,0.17,149.63,149.53,17.3203]
[1718288207329,12.3655,149.61,149.53,15.6964]
[1718288207639,20.0,149.6,149.55,2.4739]
[1718288207833,20.0,149.6,149.53,15.6964]
[1718288208157,20.0,149.6,149.54,12.3711]
[1718288208322,0.17,149.62,149.57,2.4736]
[1718288208521,2.473,149.61,149.55,2.474]
[1718288209738,2.6429,149.62,149.56,2.4739]
[1718288210036,0.17,149.6,149.54,45.0]
[1718288210240,2.473,149.62,149.56,2.4738]
[1718288210630,0.17,149.62,149.54,62.3195]
[1718288210838,2.813,149.62,149.56,2.4739]
[1718288211133,2.4731,149.61,149.55,2.474]
[1718288211326,2.813,149.62,149.56,2.4739]
[1718288212227,2.4731,149.61,149.55,2.474]
[1718288212945,0.34,149.62,149.54,45.0]
[1718288213149,2.4736,149.58,149.53,15.6964]
[1718288213352,2.4736,149.58,149.52,2.4744]
[1718288213353,2.4737,149.58,149.52,2.4745]
[1718288213527,2.4734,149.59,149.53,2.4743]
[1718288214024,0.34,149.61,149.56,2.4738]
[1718288214025,20.0,149.61,149.56,2.4738]
[1718288214242,0.17,149.61,149.56,2.4738]
[1718288214446,0.34,149.61,149.56,2.4738]
[1718288214858,2.6429,149.62,149.56,2.4738]
[1718288216452,2.4731,149.61,149.55,47.4739]
[1718288216652,2.643,149.62,149.56,2.4738]
[1718288216835,2.4731,149.61,149.55,47.4739]
[1718288217155,0.17,149.62,149.55,47.474]
[1718288217347,2.4732,149.6,149.55,47.474]
[1718288217645,20.0,149.63,149.55,45.0]
[1718288217859,2.4729,149.62,149.56,2.4738]
[1718288218042,2.4731,149.61,149.55,2.4739]
[1718288218228,2.4732,149.6,149.55,2.4739]
[1718288218563,20.0,149.63,149.59,2.4734]
[1718288219069,22.4726,149.64,149.58,2.4735]
[1718288219360,2.4728,149.63,149.57,47.4736]
[1718288220235,17.3086,149.64,149.56,15.936]
[1718288220431,20.17,149.63,149.57,2.4737]
[1718288220636,20.17,149.63,149.56,18.4097]
[1718288220941,2.4731,149.61,149.55,2.4739]
[1718288221247,2.4731,149.61,149.53,2.4744]
[1718288221248,4.9466,149.6,149.53,2.4744]
[1718288221473,20.0,149.6,149.52,15.5028]
[1718288221767,20.0,149.6,149.56,2.4738]
[1718288221954,0.17,149.61,149.56,2.4738]
[1718288222154,2.6431,149.61,149.56,2.4738]
[1718288222338,20.17,149.63,149.55,2.474]
[1718288222339,32.5339,149.63,149.55,2.474]
[1718288222538,2.4732,149.6,149.54,47.4741]
[1718288222740,2.4732,149.6,149.54,2.4741]
[1718288223369,2.4732,149.6,149.55,2.474]
[1718288223872,2.4732,149.6,149.54,2.4741]
[1718288224034,2.4734,149.59,149.53,2.4743]
[1718288224238,2.4734,149.59,149.53,2.4742]
[1718288224448,22.4731,149.61,149.55,2.474]
[1718288224647,22.4731,149.61,149.53,12.3718]
[1718288224648,22.4731,149.61,149.56,2.4738]
[1718288224849,22.4731,149.61,149.55,2.474]
[1718288225456,2.4732,149.6,149.55,2.474]
[1718288225651,20.0,149.61,149.54,2.4741]
[1718288225875,20.0,149.61,149.54,57.3711]
[1718288226076,2.643,149.62,149.57,2.4737]
[1718288226278,0.17,149.62,149.57,2.4737]
[1718288226461,2.4731,149.61,149.55,2.474]
[1718288226664,0.17,149.62,149.55,45.0]
[1718288226984,2.4729,149.62,149.56,2.4738]
[1718288227357,2.4731,149.61,149.56,2.4738]
[1718288227546,2.4732,149.6,149.54,2.4741]
[1718288228958,2.4732,149.6,149.55,2.474]
[1718288229555,0.17,149.6,149.53,45.0]
[1718288229860,0.68,149.6,149.52,15.5028]
[1718288230476,2.4735,149.59,149.54,2.4742]
[1718288230680,0.34,149.6,149.55,2.474]
[1718288230861,0.17,149.6,149.55,2.474]
[1718288231184,39.047,149.61,149.55,2.474]
[1718288231771,2.4732,149.6,149.54,47.4741]
[1718288231965,15.0095,149.6,149.52,15.5028]
[1718288232170,15.0095,149.6,149.52,17.9772]
[1718288232171,2.4736,149.58,149.52,17.9772]
[1718288232367,2.4736,149.58,149.53,45.0]
[1718288232767,0.17,149.57,149.49,15.0986]
[1718288232989,2.4742,149.55,149.49,2.4749]
[1718288233299,2.4749,149.5,149.43,6.1284]
[1718288233475,2.475,149.49,149.44,8.02605135]
[1718288233656,2.475,149.49,149.43,8.6044]
[1718288233862,2.475,149.5,149.44,2.4758]
[1718288234682,2.4751,149.49,149.43,2.476]
[1718288235375,0.17,149.48,149.42,2.4761]
[1718288235570,0.17,149.48,149.43,2.4759]
[1718288235964,2.6451,149.49,149.43,2.4759]
[1718288236159,0.34,149.48,149.43,2.4759]
[1718288236665,2.8152,149.48,149.41,17.5748]
[1718288236858,0.17,149.48,149.41,15.0986]
[1718288237062,20.0,149.5,149.41,32.4331]
[1718288237377,0.17,149.48,149.42,2.4761]
[1718288237558,0.17,149.48,149.39,6.1284]
[1718288237761,0.17,149.48,149.4,2.4765]
[1718288237762,0.34,149.48,149.4,2.4765]
[1718288237984,0.34,149.48,149.39,6.1284]
[1718288237985,0.17,149.46,149.39,6.1284]
[1718288238164,0.17,149.46,149.41,2.4763]
[1718288238981,0.17,149.48,149.39,13.5586]
[1718288239168,0.17,149.48,149.42,2.4761]
[1718288239485,0.17,149.48,149.41,2.4763]
[1718288239655,22.8153,149.48,149.41,2.4763]
[1718288239854,0.51,149.47,149.41,2.4763]
[1718288240272,0.51,149.47,149.42,2.4761]
[1718288240683,22.4749,149.5,149.43,2.476]
[1718288240980,2.815,149.49,149.42,2.4761]
[1718288241173,0.51,149.49,149.43,2.476]
[1718288241369,0.17,149.49,149.44,2.4758]
[1718288241557,20.0,149.49,149.4,54.9062]
[1718288241763,20.0,149.51,149.44,2.4758]
[1718288242065,2.475,149.5,149.43,47.476]
[1718288242268,259.9,149.53,149.46,4.9509]
[1718288242466,259.9,149.53,149.49,2.4749]
[1718288242663,16.4836,149.54,149.47,4.9506]
[1718288242867,16.4836,149.54,149.5,2.4748]
[1718288243068,6.3423,149.55,149.44,21.22]
[1718288243272,2.4742,149.54,149.48,2.4751]
[1718288243487,2.4742,149.54,149.47,2.4752]
[1718288243666,6.3423,149.55,149.46,52.4266]
[1718288243986,115.0675,149.58,149.48,12.376]
[1718288243987,15.0675,149.58,149.48,12.376]
[1718288244189,268.7156,149.6,149.49,45.0]
[1718288244388,15.0675,149.62,149.51,0.17]
[1718288244595,6.4653,149.63,149.54,4.9484]
[1718288244772,8.9381,149.63,149.56,2.4738]
[1718288245095,6.4653,149.63,149.57,2.4737]
[1718288245275,424.4162,149.67,149.59,2.4733]
[1718288245276,408.56,149.67,149.59,2.4733]
[1718288245466,408.56,149.67,149.57,4.9473]
[1718288245665,411.0321,149.67,149.6,2.4731]
[1718288246092,392.6936,149.67,149.61,2.473]
[1718288246274,386.3,149.67,149.63,2.4727]
[1718288246464,2.4716,149.7,149.63,2.4727]
[1718288246865,2.4718,149.69,149.62,2.4728]
[1718288247172,2.4716,149.7,149.63,2.4726]
[1718288247985,2.4716,149.7,149.6,4.9464]
[1718288247986,8.7873,149.71,149.64,2.4725]
[1718288248189,6.94101775,149.73,149.59,15.438]